Cogmind - Beta 14 @@@ ROGUE MODE // 2024.11.25 @ 18:59:33 Player: Komeiji O. Result: Destroyed by Striker with Plasma Lance Performance ------------- Evolutions (7) 3500 Regions Visited (16) 3200 Robots Destroyed (275) 1375 Value Destroyed (13270) 13270 Prototype IDs (42) 840 Alien Tech Used (2) 400 Bonus (6525) 6525 TOTAL SCORE: 29110 Bonus ------- High Alert Combat Kills 1754 Follower Combat Kills 2503 Met Zhirov 300 Built Enhanced Grunts 300 A7 Reached Mainframe 300 Met R17 at Cetus 500 Met R17 at Research 2000 Friendly Fire -1132 Cogmind --------- Core Integrity 0/1300 Matter 200/300 Energy 54/260 System Corruption 0% Temperature Cool (0) Movement Walking (94) Location -3/Research Parts ------- > --- POWER (2) -------- Multi-Particle Reactor > --- PROPULSION (6) --- VSS-ITA Exoskeleton > --- UTILITY (9) ------ Armored Scrap Engine Advanced Heat Sink High-capacity Storage Unit Experimental Optical Array Experimental Reaction Control System Layered Medium Armor Plating Advanced Force Field > --- WEAPON (4) ------- Hpw. Thermal Quantum Construct/G Plasma Lance > --- INVENTORY (20) --- Advanced Heat Sink Improved Matter Compressor (300) Structural Scanner Experimental Terrain Scanner Seismic Detector Graphene Brace Advanced Hacking Suite Long-range Tractor Beam Compact HERF Cannon Smartbomb Launcher Advanced Remote Datajack Plasma Lance Peak State ------------ > --- POWER ------------ Improved Quantum Reactor Multi-Particle Reactor > --- PROPULSION ------- VSS-ITA Exoskeleton > --- UTILITY ---------- Armored Scrap Engine High-capacity Storage Unit Experimental Optical Array Layered Heavy Armor Plating Centrium Light Armor Plating Experimental Thermal Shield Advanced Force Field > --- WEAPON ----------- Compact HERF Cannon Railgun Plasma Lance Plasma Lance > --- INVENTORY -------- Advanced Heat Sink Advanced Heat Sink Improved Matter Compressor Structural Scanner Experimental Terrain Scanner Seismic Detector Experimental Reaction Control System Experimental Utility Shielding Heavy Armor Plating Graphene Brace Point Defense Array Advanced Hacking Suite Long-range Tractor Beam Cooled Plasma Cannon Smartbomb Launcher Fusion Bomb Launcher Advanced Remote Datajack Plasma Lance [Rating: 163] Favorites ----------- Power Constructs Engine Subdweller Power Source Reactor Constructs Propulsion Constructs Treads Light Treads Leg Constructs Wheel Wheel Utility High-capacity Storage Unit Device Armored Scrap Engine Storage High-capacity Storage Unit Processor Advanced Targeting Computer Hackware Improved Hacking Suite Protection Reflective Plating Weapon Constructs Energy Gun Constructs Energy Cannon Cooled Plasma Cannon Ballistic Gun Gauss Rifle Ballistic Cannon Battle Cannon Launcher Long-range Missile Launcher Special Weapon Mining Laser Impact Weapon Heavy Hammer Slashing Weapon Axe Piercing Weapon Plasma Lance Build | -11 -10 -10 -8 -8 -8 -6 -6 -6 -6 -5 -4 -4 -4 -4 -3 -3 ------- Run | Yrd Mat Sub Mat Sto Rec Fac Ext Cet Arc Fac Fac Upp Upp Zhi Pro Res Slots Evolved 14 | . . . 4 . . 4 . . . 2 2 . . . . 2 Power 1 | . . . . . . 1 . . . . . . . . . . Propulsion 4 | . . . 1 . . 1 . . . . 1 . . . . 1 Utility 7 | . . . 2 . . 2 . . . 2 1 . . . . . Weapon 2 | . . . 1 . . . . . . . . . . . . 1 Parts Attached 367 | 7 10 75 25 13 5 37 33 9 8 24 28 16 3 5 8 61 Power 23 | 1 . 8 2 2 . 4 . . . . . . . 1 . 5 Engine 17 | 1 . 8 2 2 . 4 . . . . . . . . . . Core . | . . . . . . . . . . . . . . . . . Reactor 6 | . . . . . . . . . . . . . . 1 . 5 Propulsion 14 | 2 . 3 4 3 1 1 . . . . . . . . . . Treads 8 | 1 . 2 2 1 1 1 . . . . . . . . . . Leg . | . . . . . . . . . . . . . . . . . Wheel 6 | 1 . 1 2 2 . . . . . . . . . . . . Hover . | . . . . . . . . . . . . . . . . . Flight . | . . . . . . . . . . . . . . . . . Utility 208 | 2 4 35 7 4 3 25 16 4 7 20 18 14 . 4 4 41 Device 122 | 1 1 17 3 2 1 14 13 4 3 9 13 12 . 2 3 24 Storage 15 | 1 2 . . 1 2 2 . . 4 2 . . . 1 . . Processor 7 | . . . . . . 1 . . . 2 2 . . . . 2 Hackware 5 | . . . . . . . . . . 3 2 . . . . . Protection 59 | . 1 18 4 1 . 8 3 . . 4 1 2 . 1 1 15 Artifact . | . . . . . . . . . . . . . . . . . Weapon 122 | 2 6 29 12 4 1 7 17 5 1 4 10 2 3 . 4 15 Energy Gun 5 | . 1 2 1 . . . . . . . 1 . . . . . Energy Cannon 18 | . . 1 . . . 1 5 2 1 1 3 2 . . . 2 Ballistic Gun 31 | 2 3 11 10 2 1 1 . . . . . . . . . 1 Ballistic Cannon 3 | . . 2 1 . . . . . . . . . . . . . Launcher 24 | . . 6 . . . 1 4 2 . 1 . . 1 . 3 6 Special Weapon 9 | . 2 7 . . . . . . . . . . . . . . Impact Weapon 1 | . . . . . . . 1 . . . . . . . . . Slashing Weapon 18 | . . . . . . 3 7 1 . 2 4 . . . . 1 Piercing Weapon 13 | . . . . 2 . 1 . . . . 2 . 2 . 1 5 Special Melee Weapon . | . . . . . . . . . . . . . . . . . Unidentified Prototypes 21 | . . . 2 2 1 2 . 1 1 . 3 . . 4 . 5 Parts Lost 63 | . . 7 3 . . 11 4 1 . 8 1 1 1 . 1 25 Power 10 | . . 2 . . . 1 . . . . 1 . 1 . . 5 Propulsion 8 | . . 2 2 . . 2 . . . . . . . . 1 1 Utility 28 | . . 1 . . . 5 3 1 . 6 . 1 . . . 11 Weapon 17 | . . 2 1 . . 3 1 . . 2 . . . . . 8 Highest Loss Streak 10 | . . 2 1 . . 2 1 1 . 3 1 1 1 . 1 10 To Critical Strikes . | . . . . . . . . . . . . . . . . . Average Slot Usage (%) 79 | . 99 99 96 100 92 66 63 65 64 69 57 58 63 63 62 59 Engine 6 | . 14 13 9 9 8 10 1 . . . . . . . . . Reactor 1 | . . . . . . . . . 6 2 3 5 5 5 5 6 Treads 7 | . 14 13 14 18 14 5 . . 6 3 . . . . . . Leg 1 | . . . . . . 1 4 5 . 1 2 5 5 5 5 2 Wheel 5 | . 14 14 12 9 7 . . . . . . . . . . . Device 14 | . 9 12 15 11 11 17 20 20 18 16 12 17 26 23 22 14 Storage 8 | . 14 14 9 9 9 6 6 6 6 5 5 5 5 5 5 4 Processor 2 | . . . . . . 1 . . . 3 9 10 10 10 10 8 Protection 5 | . 4 1 8 15 12 6 5 6 6 6 5 3 . 2 3 4 Energy Gun 3 | . 8 9 2 . 1 1 . 6 6 . . . . . . 1 Energy Cannon 1 | . . . . . . . . 4 1 3 4 6 5 . . 1 Ballistic Gun 7 | . 16 6 23 26 24 5 4 . 4 6 . . . . . . Ballistic Cannon 2 | . . 6 1 . . 2 . . . . 1 . . 5 5 2 Special Weapon 1 | . 2 5 . . . . . . . . . . . . . . Slashing Weapon 1 | . . . . . . 4 8 5 6 3 3 . . . . . Piercing Weapon 1 | . . . . . . 1 . . . . 1 3 4 5 2 4 Peak Build Rating 163 | 7 11 15 32 34 51 75 84 95 102 102 135 136 133 136 136 163 Average Rating 65 | 5 8 12 27 32 37 63 75 86 90 96 121 130 126 130 131 136 On Entrance 71 | . 7 10 14 32 33 51 68 80 92 88 90 127 131 127 136 129 Naked Turns . | . . . . . . . . . . . . . . . . . Heaviest Build 142 | 11 52 60 76 73 73 115 96 93 130 142 129 136 119 112 117 139 Greatest Support 186 | 16 20 20 46 46 61 120 93 61 91 98 115 115 102 102 102 186 Greatest Overweight (x) 7 | . 3 5 4 7 3 1 2 1 1 2 2 1 1 1 1 2 Average Overweight (x) 1 | . 1 4 2 1 1 . . 1 . . 1 . . . 1 . Largest Inventory Capacity 25 | 8 20 20 20 20 25 25 20 20 25 25 20 20 20 20 20 20 Average Capacity 20 | 6 14 20 20 20 20 20 20 20 21 22 20 20 20 20 20 20 Most Carried 25 | 7 20 20 20 20 20 20 20 20 25 24 20 20 20 20 20 20 Average Carried 19 | 3 12 19 19 19 19 18 19 18 20 20 19 19 19 19 19 19 Final Capacity 25 | 8 20 20 20 20 20 20 20 20 25 20 20 20 20 20 20 20 Final Carried 25 | 7 20 19 20 20 20 20 20 20 25 18 19 20 20 20 20 13 Scrap Engine Consumption 263 | . . . . . 19 36 36 11 7 20 34 6 2 3 . 89 Constructs Created 9 | . . . . . 3 1 . . 1 . . . . . . 4 Constructs Modified 109 | . . . . . 4 15 19 3 2 8 17 4 1 2 . 34 Class Distribution -------------------- 37% | Construct 33% | Mutant 16% | Tank 3% | Scavenger-Construct 3% | Commander-Construct Dominant Class ---------------- Mutant | -10/Materials Mutant | -10/Subcaves Tank | -8/Materials Tank | -8/Storage Tank | -8/Recycling Construct | -6/Factory Construct | -6/Extension Construct | -6/Cetus Construct | -6/Archives Construct | -5/Factory Construct | -4/Factory Construct | -4/Upper Caves Construct | -4/Upper Caves Construct | -4/Zhirov Construct | -3/Proximity Caves Construct | -3/Research Resources | -11 -10 -10 -8 -8 -8 -6 -6 -6 -6 -5 -4 -4 -4 -4 -3 -3 ----------- Run | Yrd Mat Sub Mat Sto Rec Fac Ext Cet Arc Fac Fac Upp Upp Zhi Pro Res Matter Collected 8148 | 286 159 1508 827 712 140 663 626 208 90 452 325 223 150 397 135 1247 Remotely 257 | . . . 127 . . 34 96 . . . . . . . . . Salvage Created 13733 | 104 236 756 926 809 370 1368 1148 132 351 1109 2581 632 226 214 241 2530 Parts 598 | 4 20 50 63 47 24 54 44 6 19 53 77 29 2 6 16 84 Haulers Intercepted 3 | . . . 2 1 . . . . . . . . . . . . Recyclers Shooed 6 | 1 . . . . . 1 2 . . 1 . . . . . 1 Parts Field Recycled . | . . . . . . . . . . . . . . . . . Retrieved Matter . | . . . . . . . . . . . . . . . . . Parts Self-Destructed 74 | . . 19 . . . . . . . . . 38 1 3 13 . Prevented . | . . . . . . . . . . . . . . . . . Kills | -11 -10 -10 -8 -8 -8 -6 -6 -6 -6 -5 -4 -4 -4 -4 -3 -3 ------- Run | Yrd Mat Sub Mat Sto Rec Fac Ext Cet Arc Fac Fac Upp Upp Zhi Pro Res Combat Hostiles Destroyed 219 | . 6 24 16 14 5 24 14 1 2 13 28 8 5 . 10 49 Melee 25 | . . . . . . 14 3 . . . 2 . . . . 6 Guns 77 | . 6 12 13 14 5 7 4 . . 12 . . . . . 4 Cannons 59 | . . 5 3 . . . 4 . 1 1 19 7 . . 4 15 AOE 43 | . . 6 . . . 3 3 . . . 1 . 5 . 6 19 Classes Destroyed 26 | 2 3 3 5 . 1 5 . . . . 1 2 . . 1 3 Worker 12 | . . . 1 . . . 1 . . 6 3 . . . . 1 Builder 3 | . . . . . . 1 1 . . 1 . . . . . . Tunneler 1 | 1 . . . . . . . . . . . . . . . . Hauler 3 | . . . 2 1 . . . . . . . . . . . . Recycler 8 | 1 . . 2 1 1 . 1 . . 1 1 . . . . . Carrier 1 | . . . . . . . . . . . 1 . . . . . Minesweeper 1 | . . . . . . . . . . . . 1 . . . . Operator 10 | . . . 1 1 . . 1 . 6 . . . . . . 1 Drone 2 | . . . . . . . . . . . . . . . 2 . Turret 2 | . . 2 . . . . . . . . . . . . . . Watcher 12 | . 3 . 3 1 . . . 2 . . 3 . . . . . Swarmer 41 | . 4 6 3 3 . . 3 . . 4 . 1 1 . 6 10 Grunt 70 | . 2 1 5 6 . 14 2 . . 3 17 2 1 . . 17 Brawler 5 | . . . 1 . . 1 . . . . 2 . 1 . . . Duelist 6 | . . . . . . 1 3 . . . . . 1 . . 1 Sentry 27 | . . 1 5 4 2 2 5 . 2 1 2 1 1 . . 1 Demolisher 4 | . . . . . . . . . . . . . . . . 4 Specialist 5 | . . . . . . 2 1 . . 2 . . . . . . Hunter 12 | . . . 2 1 . 1 . . . . 2 3 . . 2 1 Programmer 10 | . . . . . . 2 . . . 3 5 . . . . . Behemoth 1 | . . . . . . 1 . . . . . . . . . . Cetus Guard 1 | . . . . . . . . 1 . . . . . . . . Enhanced Grunt 1 | . . . . . . . . . . 1 . . . . . . Striker 12 | . . . . . . . . . . . . . . . . 12 Executioner 3 | . . . . . . . . . . . . . . . . 3 Subdweller 16 | . . 16 . . . . . . . . . . . . . . Scrapper 3 | . . . . . 3 . . . . . . . . . . . Savage 1 | . . . . . . . 1 . . . . . . . . . Butcher 1 | . . . . . . . 1 . . . . . . . . . Fireman 1 | . . . . . . . . . . . . 1 . . . . Best Kill Streak 11 | 2 3 5 4 5 3 4 7 2 3 11 8 2 5 . 5 7 Combat Bots Only 7 | . 3 3 3 4 3 4 5 1 2 6 7 2 5 . 5 7 Max Kills in Single Turn 4 | 1 1 3 1 2 2 4 2 1 2 2 1 1 3 . 3 3 Gunslinging 1 | . . . . . . . . . . 1 . . . . . . Exploded 3 | . . 3 . . . 3 2 . . . 1 . 3 . 3 3 Melee 1 | . . . . . . 1 1 . . . 1 . . . . 1 Uniques/NPCs Destroyed . | . . . . . . . . . . . . . . . . . Combat | -11 -10 -10 -8 -8 -8 -6 -6 -6 -6 -5 -4 -4 -4 -4 -3 -3 -------- Run | Yrd Mat Sub Mat Sto Rec Fac Ext Cet Arc Fac Fac Upp Upp Zhi Pro Res Hostile Shots Fired 2219 | . 28 118 73 55 10 499 315 40 5 154 186 164 11 . 73 488 Missed 696 | . 6 40 21 22 3 128 114 13 3 40 67 59 2 . 12 166 Intercepted 1 | . . . . . . . . . . . . . . . . 1 Damage Taken 23911 | . 230 1517 625 259 138 4207 1700 427 36 2546 1237 934 261 . 929 8865 Core 2628 | . 43 205 36 67 18 453 149 15 . 117 29 70 38 . 103 1285 Absorbed by Shields 6598 | . . . 152 132 24 574 1118 302 . . 900 643 85 . 426 2242 Redirected to Shielding 157 | . . . . . . . . . . . . . . . 91 66 Ignored by Resistances 1389 | . . . . 34 . 397 118 40 8 353 238 201 . . . . Regen/Repaired (Parts) 6428 | . . . . . 30 1072 719 344 17 795 1134 284 138 118 . 1777 Core Remaining (%) 62 | 100 . . . . 78 . . . 27 88 . . . . 79 . Volleys Fired 796 | 8 36 203 60 29 7 45 61 12 11 57 74 56 2 . 24 111 Largest 3 | 2 2 2 3 3 3 3 2 2 2 3 2 2 2 . 2 3 Hottest 276 | 40 123 123 140 84 171 171 154 105 95 118 93 123 138 . 244 276 Shots Fired 1344 | 16 59 273 169 81 21 99 85 22 15 114 99 68 4 . 30 189 Gun 732 | 16 53 121 147 81 21 91 49 10 12 81 . . . . . 50 Cannon 454 | . . 56 22 . . 8 24 4 3 31 99 68 2 . 24 113 Launcher 72 | . . 16 . . . . 12 8 . 2 . . 2 . 6 26 Special 86 | . 6 80 . . . . . . . . . . . . . . Kinetic 814 | 16 39 111 153 81 21 92 56 . 12 75 27 29 1 . 24 77 Thermal 295 | . 6 115 12 . . . 17 4 3 37 25 36 1 . . 39 Explosive 67 | . . 16 . . . . 12 5 . . . . 2 . 6 26 Electromagnetic 168 | . 14 31 4 . . 7 . 13 . 2 47 3 . . . 47 Robot Hit Streak 28 | 2 9 24 28 10 7 26 8 5 8 10 13 7 6 . 5 20 Robot Miss Streak 11 | 3 2 1 8 4 1 3 4 2 2 3 2 5 4 . 11 4 Penetration Max 2 | . . . . 1 1 1 1 . 1 1 . 1 . . 1 2 Secondary Targets 6 | . . . . 1 . 3 . . . 2 . . . . . . Max Gunslinging Chain 1 | . . . . 1 . 1 . . . 1 . . . . . . Shots Hit Robots 944 | 7 30 106 97 47 13 160 69 14 17 82 78 41 4 4 14 161 Core Hits 518 | 4 12 52 43 25 9 57 43 14 6 43 34 16 30 2 26 102 Critical Kills 7 | . . 1 2 1 1 . . . 1 1 . . . . . . Critical Parts Destroyed 3 | . . . 1 . . . . . . 2 . . . . . . Critical Strikes 35 | . . 1 5 1 1 17 4 . 1 3 . . . . . 2 Burn 1 | . . . . . . . . . . . . . . . . 1 Meltdown 1 | . . . . . . . . . 1 . . . . . . . Destroy 12 | . . 1 5 1 1 1 . . . 3 . . . . . . Sever 19 | . . . . . . 15 4 . . . . . . . . . Impale 2 | . . . . . . 1 . . . . . . . . . 1 Melee Attacks 243 | . . . . 10 . 109 31 . 7 10 12 . 2 4 1 57 Impact . | . . . . . . . . . . . . . . . . . Slashing 138 | . . . . . . 86 31 . 7 10 4 . . . . . Piercing 105 | . . . . 10 . 23 . . . . 8 . 2 4 1 57 Sneak Attacks 10 | . . . . 1 . . 2 . 5 . 2 . . . . . Combat Hostiles 1 | . . . . . . . 1 . . . . . . . . . Follow-up Attacks 21 | . . . . . . 13 . . . . . . . . . 8 Damage Inflicted 39666 | 54 362 2475 1781 993 329 5125 3445 899 840 2454 5177 2244 1015 330 1255 10888 Guns 9632 | 54 338 1312 1530 951 329 1501 621 170 155 1585 . . . . . 1086 Cannons 12933 | . . 655 225 . . 95 434 . 98 495 4751 2244 . . 444 3492 Explosions 10536 | . . 460 . . . 683 1641 729 . 171 119 . 877 . 811 5045 Melee 6325 | . . . . 42 . 2828 749 . 564 135 287 . 138 330 . 1252 Ramming 168 | . . . 26 . . 18 . . 23 68 20 . . . . 13 Kinetic 13196 | 54 215 1441 1537 951 329 1501 632 . 155 1473 1217 965 . . 444 2282 Thermal 4844 | . 24 289 153 . . 683 423 . 98 644 595 1190 . . . 745 Explosive 9312 | . . 460 . . . . 1641 478 . . . . 877 . 811 5045 Electromagnetic 5821 | . 123 285 65 . . 95 . 421 . 134 3058 89 . . . 1551 Impact . | . . . . . . . . . . . . . . . . . Slashing 3867 | . . . . . . 2289 749 . 564 135 130 . . . . . Piercing 2458 | . . . . 42 . 539 . . . . 157 . 138 330 . 1252 Highest Corruption 11 | . . . . . . 2 2 1 1 3 11 11 11 11 11 . Average Corruption 6 | . . . . . . 1 1 1 1 1 6 11 11 11 11 . Corruption Purged 3 | . . . . . . . 2 . 1 . . . . . . . Corruption Blocked . | . . . . . . . . . . . . . . . . . Effects 142 | . . . . . . 12 5 3 1 1 21 47 18 9 25 . Message Errors 43 | . . . . . . 3 2 1 1 1 9 10 6 2 8 . Matter Fused 37 | . . . . . . 5 2 . . . 6 12 3 3 6 . Heat Flow Errors 18 | . . . . . . . . 1 . . 4 5 3 2 3 . Energy Discharges 8 | . . . . . . . . . . . . 2 1 1 4 . Parts Rejected 3 | . . . . . . . . . . . . 3 . . . . Parts Fused 1 | . . . . . . . . . . . . . . . 1 . Data Loss (minor) 16 | . . . . . . 2 . . . . 2 10 1 1 . . Data Loss (major) 7 | . . . . . . 1 1 . . . . 2 3 . . . Misfires 1 | . . . . . . . . . . . . . 1 . . . Alerts 4 | . . . . . . 1 . . . . . 1 . . 2 . Misdirections 1 | . . . . . . . . . . . . . . . 1 . Weapon Failures 3 | . . . . . . . . 1 . . . 2 . . . . Overload Shots 2 | . . . . . . . 1 1 . . . . . . . . Overflow Damage 1795 | . . 5 1 30 . 257 190 31 153 18 617 182 14 129 30 138 Projectiles 836 | . . . . . . . . . . 7 580 182 . . 23 44 Explosions 423 | . . 5 . . . 158 134 31 . . . . 14 . 7 74 Melee 536 | . . . 1 30 . 99 56 . 153 11 37 . . 129 . 20 Knockbacks 42 | . . 7 1 . . . 1 . . . 10 8 . . 3 12 Impact 1 | . . . 1 . . . . . . . . . . . . . Kinetic 40 | . . 7 . . . . 1 . . . 10 8 . . 3 11 Secondary 1 | . . . . . . . . . . . . . . . . 1 Self-Inflicted Damage 983 | . . 83 13 . . . 132 17 . 59 59 . 137 . 26 457 Shots 26 | . . 5 . . . . 3 1 . . 1 . 7 . 1 8 Rammed 5 | . . . 1 . . 3 . . 1 . . . . . . . Targets Rammed 8 | . . . 1 . . 3 . . 1 1 1 . . . . 1 Kicked 3 | . . . . . . . . . . 1 1 . . . . 1 Crushed . | . . . . . . . . . . . . . . . . . Highest Temperature 649 | . 213 21 229 77 118 219 205 89 46 129 550 420 147 177 573 649 Average Temperature 90 | . 56 6 51 20 27 50 40 22 21 37 110 146 94 101 207 210 Received Heat Transfer 3210 | . 111 192 185 126 58 1234 367 21 9 208 241 126 17 . . 315 Effects 14 | . . . . . . . . . . . . 3 . . 4 7 Shutdowns 4 | . . . . . . . . . . . . . . . 2 2 Energy Bleed 1 | . . . . . . . . . . . . . . . 1 . Interference 5 | . . . . . . . . . . . . 3 . . . 2 Matter Decay 1 | . . . . . . . . . . . . . . . . 1 Damage (minor) 2 | . . . . . . . . . . . . . . . 1 1 Damage (major) 1 | . . . . . . . . . . . . . . . . 1 Siege Activations . | . . . . . . . . . . . . . . . . . Robots Corrupted 15 | . . 1 1 . . . . 1 1 . 6 . . . . 5 Combat Hostiles 13 | . . 1 . . . . . 1 . . 6 . . . . 5 Parts Fried 38 | . . 1 2 . . . . 1 1 . 26 . . . . 7 Impact Corruptions 2 | . . . 1 . . . . . 1 . . . . . . . Robots Melted 2 | . . . . . . . . . 1 . . 1 . . . . Combat Hostiles 2 | . . . . . . . . . 1 . . 1 . . . . Parts Melted 12 | . . . . . 1 1 8 . . 2 . . . . . . Heat Transferred 5686 | . 50 411 260 . . 400 700 . 150 1042 750 800 . . . 1123 Parts Sabotaged . | . . . . . . . . . . . . . . . . . Parts Stolen . | . . . . . . . . . . . . . . . . . Parts Stripped . | . . . . . . . . . . . . . . . . . Power Chain Reactions 2 | . . . . . . 1 . . . 1 . . . . . . Alert | -11 -10 -10 -8 -8 -8 -6 -6 -6 -6 -5 -4 -4 -4 -4 -3 -3 ------- Run | Yrd Mat Sub Mat Sto Rec Fac Ext Cet Arc Fac Fac Upp Upp Zhi Pro Res Peak Influence 1280 | 10 178 . 358 319 82 429 1119 772 490 691 903 . . . . 1280 Initial 626 | . 6 . 48 78 75 100 192 626 293 101 324 . . . . 300 Average 317 | 3 82 . 177 180 24 185 531 721 427 419 551 . . . . 396 Maximum Alert Level 4 | . . . 1 1 . 2 4 3 2 2 3 . . . . 4 Low Security (%) 44 | 100 100 . 60 67 100 59 3 . . 26 . . . . . 37 Level 1 24 | . . . 39 32 . 37 35 . 24 3 28 . . . . 26 Level 2 19 | . . . . . . 3 36 13 75 69 58 . . . . 10 Level 3 11 | . . . . . . . 18 86 . . 12 . . . . 24 Level 4 . | . . . . . . . 4 . . . . . . . . 1 Level 5 . | . . . . . . . . . . . . . . . . . High Security . | . . . . . . . . . . . . . . . . . Max Security . | . . . . . . . . . . . . . . . . . Squads Dispatched 41 | . 2 . 1 3 . 8 6 1 . 7 7 . . . . 6 Investigation 11 | . . . 1 . . 2 1 1 . 1 . . . . . 5 Extermination 7 | . . . . . . 3 . . . 1 3 . . . . . Reinforcement 14 | . 2 . . 3 . 3 1 . . 3 1 . . . . 1 Assault 9 | . . . . . . . 4 . . 2 3 . . . . . Garrison . | . . . . . . . . . . . . . . . . . Intercept . | . . . . . . . . . . . . . . . . . Searches Triggered . | . . . . . . . . . . . . . . . . . Construction Impeded 2 | . . . . 1 . . . . . 1 . . . . . . Haulers Reinforced 2 | . . . . . . 1 . . . . . . . . . 1 Active Scanning Responses . | . . . . . . . . . . . . . . . . . Cargo Convoy Interrupts 1 | . . . . . . 1 . . . . . . . . . . Stealth | -11 -10 -10 -8 -8 -8 -6 -6 -6 -6 -5 -4 -4 -4 -4 -3 -3 --------- Run | Yrd Mat Sub Mat Sto Rec Fac Ext Cet Arc Fac Fac Upp Upp Zhi Pro Res Distress Signals 21 | . . . 1 4 . 1 2 2 . 1 1 . . . 2 7 Communications Jammed 4 | . . . . . . . 2 . 2 . . . . . . . Distress Signals 4 | . . . . . . . 2 . 2 . . . . . . . Times Spotted 398 | . 12 32 29 20 4 35 57 10 9 32 43 17 5 . 10 83 Peak Tracking Total 11 | . 4 5 4 4 3 6 11 5 2 7 5 4 5 . 5 11 Tactical Retreats 22 | . 2 2 2 1 . 2 3 . . 1 4 1 . . . 4 Traps | -11 -10 -10 -8 -8 -8 -6 -6 -6 -6 -5 -4 -4 -4 -4 -3 -3 ------- Run | Yrd Mat Sub Mat Sto Rec Fac Ext Cet Arc Fac Fac Upp Upp Zhi Pro Res Traps Triggered 12 | . . 4 1 1 . 1 3 . . . 2 . . . . . Indirectly . | . . . . . . . . . . . . . . . . . Trap Hack Attempts . | . . . . . . . . . . . . . . . . . Triggered . | . . . . . . . . . . . . . . . . . Disarmed . | . . . . . . . . . . . . . . . . . Reprogrammed . | . . . . . . . . . . . . . . . . . Reused 1 | . . . . . . 1 . . . . . . . . . . Traps Extracted . | . . . . . . . . . . . . . . . . . Installed 1 | . . . . . . 1 . . . . . . . . . . Triggered 5 | . . . . . . 3 1 . . . . 1 . . . . Most Traps Carried 2 | . . 1 1 1 1 1 . . . . . 2 2 1 1 1 Machines | -11 -10 -10 -8 -8 -8 -6 -6 -6 -6 -5 -4 -4 -4 -4 -3 -3 ---------- Run | Yrd Mat Sub Mat Sto Rec Fac Ext Cet Arc Fac Fac Upp Upp Zhi Pro Res Machines Disabled 35 | . . 3 3 2 2 6 3 2 3 1 7 . . . 1 2 Max in Single Turn 6 | . . 2 1 1 1 6 2 1 1 1 4 . . . 1 1 Garrison Access 2 | . . . . 1 . . . . . . . . . . . 1 Machines Repaired . | . . . . . . . . . . . . . . . . . Machines Dismantled . | . . . . . . . . . . . . . . . . . Machines Sabotaged . | . . . . . . . . . . . . . . . . . Overloaded Fab Kills . | . . . . . . . . . . . . . . . . . Hacking | -11 -10 -10 -8 -8 -8 -6 -6 -6 -6 -5 -4 -4 -4 -4 -3 -3 --------- Run | Yrd Mat Sub Mat Sto Rec Fac Ext Cet Arc Fac Fac Upp Upp Zhi Pro Res Machines Accessed 79 | . 5 . 9 7 11 8 18 3 1 4 4 2 . 4 . 3 Terminals 56 | . 5 . 9 5 5 4 17 3 . 4 3 1 . . . . Fabricators 2 | . . . . . . 2 . . . . . . . . . . Repair Stations 1 | . . . . . . 1 . . . . . . . . . . Recycling Units 7 | . . . . 1 4 . 1 . . . 1 . . . . . Scanalyzers 2 | . . . . . . 1 . . . . . . . . . 1 Garrison Access 3 | . . . . 1 . . . . . . . . . . . 2 Total Hacks 197 | . 20 . 27 18 30 15 36 11 5 8 5 2 . 17 . 3 Successful 112 | . 10 . 18 7 18 6 21 1 5 2 3 2 . 17 . 2 Failed 84 | . 10 . 9 11 12 9 14 10 . 6 2 . . . . 1 Catastrophic 16 | . . . 1 2 1 3 4 3 . 1 1 . . . . . Database Lockouts 1 | . . . . . . . 1 . . . . . . . . . Manual 80 | . 19 . 14 7 16 5 11 1 . 5 2 . . . . . Terminals 145 | . 20 . 27 13 19 7 35 11 . 8 4 1 . . . . Fabricators 4 | . . . . . . 4 . . . . . . . . . . Repair Stations 2 | . . . . . . 2 . . . . . . . . . . Recycling Units 11 | . . . . 4 5 . 1 . . . 1 . . . . . Scanalyzers 3 | . . . . . . 2 . . . . . . . . . 1 Garrison Access 3 | . . . . 1 . . . . . . . . . . . 2 Terminal Hacks 71 | . 6 . 10 3 9 1 15 1 5 1 1 2 . 17 . . Record 17 | . . . 1 . 4 . . 1 5 . . 1 . 5 . . Part Schematic 7 | . . . . . 3 . . . . . . . . 4 . . Robot Analysis 10 | . 3 . 2 . . . 1 . . . . . . 4 . . Prototype ID Bank 7 | . . . 2 . . . 1 . . . . . . 4 . . Open Door 13 | . . . . 1 . 1 10 . . . . 1 . . . . Open DSF 1 | . . . . . . . . . . 1 . . . . . . Branch Access Points 2 | . . . 1 . . . . . . . 1 . . . . . Unreport Threat 1 | . . . . . . . 1 . . . . . . . . . Locate Traps 3 | . 2 . . . . . 1 . . . . . . . . . Hauler Manifests 2 | . . . 1 1 . . . . . . . . . . . . Zone Layout 6 | . 1 . 3 1 . . 1 . . . . . . . . . Release Object 2 | . . . . . 2 . . . . . . . . . . . Fabricator Hacks 1 | . . . . . . 1 . . . . . . . . . . Network Status 1 | . . . . . . 1 . . . . . . . . . . Repair Station Hacks 2 | . . . . . . 2 . . . . . . . . . . Scan Component 1 | . . . . . . 1 . . . . . . . . . . Repair 1 | . . . . . . 1 . . . . . . . . . . Recycling Unit Hacks 5 | . . . . . 3 . 1 . . . 1 . . . . . Report Inventory 1 | . . . . . . . . . . . 1 . . . . . Retrieve Components 4 | . . . . . 3 . 1 . . . . . . . . . Scanalyzer 1 | . . . . . . . . . . . . . . . . 1 Insert Component 1 | . . . . . . . . . . . . . . . . 1 Garrison Access Hacks 2 | . . . . 1 . . . . . . . . . . . 1 Seal Access 2 | . . . . 1 . . . . . . . . . . . 1 Unauthorized Hacks 30 | . 4 . 8 3 6 2 5 . . 1 1 . . . . . Terminals 29 | . 4 . 8 2 6 2 5 . . 1 1 . . . . . Botnet 21 | . 4 . 3 2 3 2 5 . . 1 1 . . . . . Skim 8 | . . . 5 . 3 . . . . . . . . . . . Fabricators . | . . . . . . . . . . . . . . . . . Repair Stations . | . . . . . . . . . . . . . . . . . Recycling Units 1 | . . . . 1 . . . . . . . . . . . . Mask 1 | . . . . 1 . . . . . . . . . . . . Scanalyzers . | . . . . . . . . . . . . . . . . . Garrison Access . | . . . . . . . . . . . . . . . . . Data Cores Recovered 2 | . . . . 1 . . 1 . . . . . . . . . Used 1 | . . . . . . . 1 . . . . . . . . . Hacking Detections 51 | . 5 . 8 4 6 6 9 3 . 3 4 1 . . . 2 Full Trace Events 7 | . . . . . 2 2 1 1 . 1 . . . . . . Feedback Events . | . . . . . . . . . . . . . . . . . Feedback Blocked . | . . . . . . . . . . . . . . . . . Robot Schematics Acquired . | . . . . . . . . . . . . . . . . . Robots Built . | . . . . . . . . . . . . . . . . . Authchips . | . . . . . . . . . . . . . . . . . Time . | . . . . . . . . . . . . . . . . . Total Robot Build Rating . | . . . . . . . . . . . . . . . . . Part Schematics Acquired 7 | . . . . . 3 . . . . . . . . 4 . . Parts Built . | . . . . . . . . . . . . . . . . . Authchips . | . . . . . . . . . . . . . . . . . Time . | . . . . . . . . . . . . . . . . . Total Part Build Rating . | . . . . . . . . . . . . . . . . . Parts Repaired 1 | . . . . . . 1 . . . . . . . . . . Time 19 | . . . . . . 19 . . . . . . . . . . Parts Recycled . | . . . . . . . . . . . . . . . . . Recycled Matter . | . . . . . . . . . . . . . . . . . Retrieved Matter . | . . . . . . . . . . . . . . . . . Retrieved Components 7 | . . . . . 5 . 2 . . . . . . . . . Parts Scanalyzed . | . . . . . . . . . . . . . . . . . Part Schematics Acquired . | . . . . . . . . . . . . . . . . . Parts Damaged . | . . . . . . . . . . . . . . . . . Bothacking | -11 -10 -10 -8 -8 -8 -6 -6 -6 -6 -5 -4 -4 -4 -4 -3 -3 ------------ Run | Yrd Mat Sub Mat Sto Rec Fac Ext Cet Arc Fac Fac Upp Upp Zhi Pro Res Used RIF Installer . | . . . . . . . . . . . . . . . . . Robots Hacked . | . . . . . . . . . . . . . . . . . Non-combat . | . . . . . . . . . . . . . . . . . Combat . | . . . . . . . . . . . . . . . . . Robot Hacks Applied . | . . . . . . . . . . . . . . . . . Relay Couplers Released . | . . . . . . . . . . . . . . . . . Fabnet Peak Effective % . | . . . . . . . . . . . . . . . . . Robots Rewired 14 | . . . . . . . 14 . . . . . . . . . Allies Hacked 1 | . . . . . . . 1 . . . . . . . . . Hacks Repelled . | . . . . . . . . . . . . . . . . . Allies | -11 -10 -10 -8 -8 -8 -6 -6 -6 -6 -5 -4 -4 -4 -4 -3 -3 -------- Run | Yrd Mat Sub Mat Sto Rec Fac Ext Cet Arc Fac Fac Upp Upp Zhi Pro Res Total Allies 35 | . . . . . . . 30 5 . . . . . . . . Largest Group 14 | . . . . . . . 14 7 7 3 . . . . . . Highest-Rated Group 594 | . . . . . . . 420 594 594 288 . . . . . . Highest-Rated Ally 159 | . . . . . . . 159 159 159 96 . . . . . . Total Orders . | . . . . . . . . . . . . . . . . . Ally Attacks 476 | . . . . . . . 334 58 33 51 . . . . . . Total Damage 10512 | . . . . . . . 5845 1555 1092 2020 . . . . . . Kills 68 | . . . . . . . 45 8 2 13 . . . . . . Allies Corrupted 2 | . . . . . . . 2 . . . . . . . . . Allies Melted . | . . . . . . . . . . . . . . . . . Intel | -11 -10 -10 -8 -8 -8 -6 -6 -6 -6 -5 -4 -4 -4 -4 -3 -3 ------- Run | Yrd Mat Sub Mat Sto Rec Fac Ext Cet Arc Fac Fac Upp Upp Zhi Pro Res Robot Analysis Total 10 | . 3 . 2 . . . 1 . . . . . . 4 . . Derelict Logs Recovered 3 | . . 1 . . . . . . . . . 2 . . . . Drone Launches . | . . . . . . . . . . . . . . . . . Drone Recoveries . | . . . . . . . . . . . . . . . . . Exploration | -11 -10 -10 -8 -8 -8 -6 -6 -6 -6 -5 -4 -4 -4 -4 -3 -3 ------------- Run | Yrd Mat Sub Mat Sto Rec Fac Ext Cet Arc Fac Fac Upp Upp Zhi Pro Res Turns Passed 26127 | 94 599 6758 1850 1177 2016 2208 1868 591 478 927 1851 1230 449 266 618 3147 Spaces Moved 13997 | 56 378 3773 892 431 1004 1203 1055 329 290 441 1086 636 325 166 295 1637 Core 3 | 3 . . . . . . . . . . . . . . . . Treads 3278 | . 5 1 289 389 632 1006 . 17 290 331 . . . . . 318 Legs 4406 | . . . . . 186 197 780 312 . 110 465 636 325 166 295 934 Wheels 5029 | 53 373 3772 603 42 186 . . . . . . . . . . . Hover 491 | . . . . . . . 275 . . . 78 . . . . 138 Flight 790 | . . . . . . . . . . . 543 . . . . 247 Fastest Speed 50 | 50 100 130 120 160 110 110 93 163 108 95 95 127 127 127 182 52 Average Speed 154 | 97 117 148 167 232 194 142 133 163 141 152 141 169 132 141 182 157 Slowest Speed 320 | 100 320 320 240 240 240 161 197 163 163 218 237 182 182 182 182 214 Overloaded Moves . | . . . . . . . . . . . . . . . . . Propulsion Burnouts . | . . . . . . . . . . . . . . . . . Robots Hopped . | . . . . . . . . . . . . . . . . . Cave-ins Triggered . | . . . . . . . . . . . . . . . . . Teleports 1 | . . . . . . . . . . . . . . . . 1 Exploration Rate (%) 61 | 4 66 97 79 86 99 25 84 90 94 12 23 77 50 60 52 52 Regions Visited 16 Branch Regions 10 Pre-discovered Areas 5 | . . 1 . . . . . . . . . 1 . 3 . . Known Exits Taken 4 | . . . 1 . . 1 . . 1 . 1 . . . . . Unknown Exits Taken 12 | 1 1 1 . 1 1 . 1 1 . 1 . 1 1 1 1 . Scrap Searched 9 | . . 7 . . . . . . . . . 1 . . 1 . Spaces Dug 132 | . 5 86 4 5 . . 6 . . 6 3 6 . . 3 8 Terrain Destroyed 1047 | . 5 150 9 10 . 79 142 69 1 17 61 42 41 . 87 334 Melee 26 | . . . . 5 . . 6 . . 5 3 . . . 1 6 Projectile 215 | . 5 52 9 5 . 2 8 . 1 9 31 42 2 . 22 27 AOE 806 | . . 98 . . . 77 128 69 . 3 27 . 39 . 64 301 Terrain Rammed 1 | . . . . . . . . . . 1 . . . . . . Walls Destroyed 1 | . . . . . . . . . . 1 . . . . . . Machines Disabled . | . . . . . . . . . . . . . . . . . Actions | -11 -10 -10 -8 -8 -8 -6 -6 -6 -6 -5 -4 -4 -4 -4 -3 -3 --------- Run | Yrd Mat Sub Mat Sto Rec Fac Ext Cet Arc Fac Fac Upp Upp Zhi Pro Res Total 16678 | 80 475 4476 1135 530 1059 1471 1372 358 332 560 1285 719 333 196 338 1959 Wait 753 | . 16 394 109 35 28 47 34 1 1 19 43 1 . 4 5 16 Move 13981 | 55 377 3772 891 430 1003 1202 1054 328 289 440 1085 635 324 165 294 1637 Hop . | . . . . . . . . . . . . . . . . . Pick Up 183 | 9 21 12 23 4 2 20 10 3 8 5 19 6 1 6 3 31 Fast Attach 67 | 6 3 4 4 2 1 5 6 1 2 . 4 4 . 5 . 20 Attach 87 | 1 . 9 8 . 1 18 9 3 3 8 3 2 . . 1 21 Detach 51 | . 2 3 . . 5 11 7 1 3 . 3 1 . 1 1 13 Swap 215 | . 7 62 13 11 3 14 18 5 3 16 21 10 3 1 7 21 Drop 189 | 1 13 17 26 8 9 13 13 3 4 3 20 4 1 10 2 42 Fire 796 | 8 36 203 60 29 7 45 61 12 11 57 74 56 2 . 24 111 Melee 214 | . . . . 10 . 92 30 . 7 10 12 . 2 4 1 46 Ram 2 | . . . 1 . . . . . . 1 . . . . . . Kick 3 | . . . . . . . . . . 1 1 . . . . 1 Crush 4 | . . . . . . 3 . . 1 . . . . . . . Escape Stasis 11 | . . . . . . . 11 . . . . . . . . . Rewire 121 | . . . . 1 . . 119 1 . . . . . . . . Trap 1 | . . . . . . 1 . . . . . . . . . . Miscellaneous . | . . . . . . . . . . . . . . . . . Route ------- -11/Scrapyard -10/Materials (discovered 3 exits: [*Mat] / [*Min] / [*Sub]) -10/Subcaves (discovered 3 exits: *Mat x2 / *Rec) -8/Materials (discovered 5 exits: *Fac x3 / *Sto x2) -8/Storage (discovered 2 exits: *Fac / *Rec) -8/Recycling -6/Factory (discovered 3 exits: *Fac / *Ext x2) -6/Extension (discovered 2 exits: *Fac / *Cet) -6/Cetus (discovered 3 exits: *Fac x2 / *Arc) -6/Archives (discovered 3 exits: *Fac / [*Hub x2]) -5/Factory -4/Factory (discovered 4 exits: *Res / *Upp x2 / Arm) -4/Upper Caves -4/Upper Caves (discovered 2 exits: *Res / *Zhi) -4/Zhirov -3/Proximity Caves -3/Research History --------- Turn | Location | Event 14 | -11/Scrapyard | Discovered new exit (range 14) 95 | -11/Scrapyard | Entered Materials 249 | -10/Materials | Discovered new exit (range 14) 306 | -10/Materials | Discovered new exit (range 16) 317 | -10/Materials | Build established: Mutant 690 | -10/Materials | Discovered new exit (range 3) 694 | -10/Materials | Entered Subcaves 1023 | -10/Subcaves | Ambushed by Subdweller buried in earth 1143 | -10/Subcaves | Shifting Twisted Machinery released Sub. Beam Cannon 1216 | -10/Subcaves | Shifting Twisted Machinery released Sub. Machine Gun 1351 | -10/Subcaves | Ambushed by Subdweller buried in earth 1393 | -10/Subcaves | Shifting Twisted Machinery released Battle Cannon 1394 | -10/Subcaves | Shifting Twisted Machinery released Battle Rifle 1583 | -10/Subcaves | Shifting Twisted Machinery released Battle Rifle 2033 | -10/Subcaves | A swath of the cavern ceiling suddenly collapsed 2287 | -10/Subcaves | Core integrity fell below 50% 2767 | -10/Subcaves | Learned location of Zion (-6) 2767 | -10/Subcaves | Met a Zionite searching for "candidates" 3376 | -10/Subcaves | Discovered new exit (range 16) 3670 | -10/Subcaves | Discovered new exit (range 11) 3823 | -10/Subcaves | Learned Materials stockpile data 4254 | -10/Subcaves | A swath of the cavern ceiling suddenly collapsed 5117 | -10/Subcaves | Discovered new exit (range 7) 5597 | -10/Subcaves | Ambushed by Subdweller buried in earth 5861 | -10/Subcaves | Ambushed by Subdweller buried in earth 5866 | -10/Subcaves | Core integrity fell below 20% 7452 | -10/Subcaves | Entered Materials 7452 | -8/Materials | Evolved 4 slots: Propulsion x1, Utility x2, Weapon x1 7475 | -8/Materials | Discovered new exit (range 13) 7635 | -8/Materials | Identified exit to Storage 7837 | -8/Materials | Discovered new exit (range 13) 8005 | -8/Materials | Build established: Tank 8688 | -8/Materials | Learned location of 1 exit from Extension 8753 | -8/Materials | Learned Factory stockpile data 8809 | -8/Materials | Learned location of 2 exits from Lower Caves 8893 | -8/Materials | Learned 8 Factory zone layouts 8922 | -8/Materials | Learned Storage emergency access door positions 8940 | -8/Materials | Identified exit to Factory 8969 | -8/Materials | Learned 4 Factory zone layouts 9010 | -8/Materials | Learned Factory stockpile data 9063 | -8/Materials | Learned 2 Lower Caves zone layouts 9134 | -8/Materials | Discovered exit to Factory (range 15) 9302 | -8/Materials | Entered Storage 10249 | -8/Storage | Discovered exit to Factory (range 6) 10469 | -8/Storage | Used back door to open Recycling access 10469 | -8/Storage | Discovered new exit (range 5) 10479 | -8/Storage | Entered Recycling 11286 | -8/Recycling | Discovered new exit (range 16) 11775 | -8/Recycling | Scanned before Scraplab entrance 11808 | -8/Recycling | Entered Scraplab 11827 | -8/Recycling | Discovered new exit (range 3) 11847 | -8/Recycling | Angered Scraplab inhabitants 11850 | -8/Recycling | Found Prototype Device 11850 | -8/Recycling | Identified Scrap Engine 12383 | -8/Recycling | Build established: Construct 12495 | -8/Recycling | Entered Factory 12495 | -6/Factory | Evolved 4 slots: Power x1, Propulsion x1, Utility x2 12496 | -6/Factory | Identified exit to Extension 12613 | -6/Factory | Discovered new exit (range 11) 12638 | -6/Factory | Spotted B-75 Beast 12831 | -6/Factory | Destroyed B-75 Beast 13191 | -6/Factory | Repaired Reflective Plating? 13303 | -6/Factory | Cargo convoy interrupted 13928 | -6/Factory | Found Prototype Launcher 13928 | -6/Factory | Identified Scatter Rocket Array 14373 | -6/Factory | Core integrity fell below 50% 14703 | -6/Factory | Entered Extension 14704 | -6/Extension | Identified exit to Factory 14758 | -6/Extension | Rescued a captive Derelict 14758 | -6/Extension | Rescued a captive Derelict 14772 | -6/Extension | Rescued a captive Derelict 14883 | -6/Extension | Rescued a captive Derelict 14884 | -6/Extension | Rescued a captive Derelict 14930 | -6/Extension | Rescued a captive Derelict 15085 | -6/Extension | Lost 3 allies 15104 | -6/Extension | Rescued a captive Derelict 15121 | -6/Extension | Rescued a captive Derelict 15295 | -6/Extension | Lost 5 allies 15356 | -6/Extension | Rescued a captive Derelict 15357 | -6/Extension | Rescued a captive Derelict 15403 | -6/Extension | First assault squad dispatched 15459 | -6/Extension | Build established: Commander-Construct 15675 | -6/Extension | Spotted B-75 Beast 15705 | -6/Extension | Allies destroyed B-75 Beast 15706 | -6/Extension | Spotted B-75 Beast 15713 | -6/Extension | Allies destroyed B-75 Beast 15753 | -6/Extension | Disrupted transfer network 15756 | -6/Extension | Lost 5 allies 15828 | -6/Extension | Rescued a captive Derelict 15828 | -6/Extension | Rescued a captive Derelict 15831 | -6/Extension | Rescued A7 15869 | -6/Extension | Rescued a captive Derelict 15877 | -6/Extension | Rescued a captive Derelict 15877 | -6/Extension | Rescued a captive Derelict 15989 | -6/Extension | Build established: Construct 16028 | -6/Extension | Rescued a captive Derelict 16086 | -6/Extension | Central database locked down 16191 | -6/Extension | Lost 5 allies 16302 | -6/Extension | Discovered new exit (range 6) 16571 | -6/Extension | Entered Cetus 16571 | -6/Cetus | Accompanied by 5 allies (A7) 16576 | -6/Cetus | Acquired a Cetus Manufacturing Module code from A7 16596 | -6/Cetus | Spotted Cetus Guard 16596 | -6/Cetus | Spotted Cetus Guard 16597 | -6/Cetus | Spotted Cetus Guard 16597 | -6/Cetus | Spotted Cetus Guard 16603 | -6/Cetus | Allies destroyed Cetus Guard 16611 | -6/Cetus | Allies destroyed Cetus Guard 16617 | -6/Cetus | Allies destroyed Cetus Guard 16623 | -6/Cetus | Allies destroyed Cetus Guard 16668 | -6/Cetus | Discovered exit to Factory (range 15) 16862 | -6/Cetus | Started Cetus Manufacturing Module 16878 | -6/Cetus | Escorted A7 to Cetus Mainframe 16887 | -6/Cetus | Manufactured an Enhanced Grunt 16912 | -6/Cetus | Manufactured an Enhanced Grunt 16937 | -6/Cetus | Manufactured an Enhanced Grunt 16942 | -6/Cetus | Discovered new exit (range 16) 16962 | -6/Cetus | Manufactured an Enhanced Grunt 16973 | -6/Cetus | Spotted Cetus Guard 16974 | -6/Cetus | Spotted Cetus Guard 16976 | -6/Cetus | Spotted Cetus Guard 16977 | -6/Cetus | Spotted Cetus Guard 16985 | -6/Cetus | Allies destroyed Cetus Guard 16987 | -6/Cetus | Manufactured an Enhanced Grunt 16988 | -6/Cetus | Destroyed Cetus Guard 16994 | -6/Cetus | Allies destroyed Cetus Guard 16997 | -6/Cetus | Allies destroyed Cetus Guard 16999 | -6/Cetus | Discovered exit to Factory (range 16) 17009 | -6/Cetus | Met Revision 17 17053 | -6/Cetus | Found Prototype Device 17053 | -6/Cetus | Identified Exp. Thermal Shield 17162 | -6/Cetus | Entered Archives 17162 | -6/Archives | Accompanied by 7 allies (A7) 17167 | -6/Archives | Received a hacking code to weaken MAIN.C 17221 | -6/Archives | Discovered new exit (range 15) 17233 | -6/Archives | Lost 3 allies 17235 | -6/Archives | Discovered new exit (range 16) 17290 | -6/Archives | Discovered exit to Factory (range 14) 17368 | -6/Archives | Unable to access archive contents 17381 | -6/Archives | Unable to access archive contents 17392 | -6/Archives | Unable to access archive contents 17640 | -6/Archives | Entered Factory 17640 | -5/Factory | Accompanied by 3 allies 17640 | -5/Factory | Evolved 2 slots: Utility x2 17801 | -5/Factory | Identified exit to DSF 17985 | -5/Factory | Build established: Hacker-Construct 18325 | -5/Factory | Build established: Construct 18512 | -5/Factory | Discovered new exit (range 13) 18540 | -5/Factory | First assault squad dispatched 18567 | -5/Factory | Entered another Factory area 18567 | -4/Factory | Evolved 2 slots: Propulsion x1, Utility x1 18584 | -4/Factory | Lost 3 parts (2u1w) 18780 | -4/Factory | Discovered new exit (range 13) 19516 | -4/Factory | Identified exit to Upper Caves 19516 | -4/Factory | Identified exit to Armory 19803 | -4/Factory | Build established: Hacker-Construct 19932 | -4/Factory | System corruption reached 10% 20067 | -4/Factory | First assault squad dispatched 20213 | -4/Factory | Build established: Construct 20314 | -4/Factory | Destroyed 7 combat bots 20418 | -4/Factory | Entered Upper Caves 20430 | -4/Upper Caves | Encountered a Warlord checkpoint 20659 | -4/Upper Caves | Learned Research terminal intel 20929 | -4/Upper Caves | Attracted the attention of an 0b10 checkpoint 21262 | -4/Upper Caves | Learned location of Testing (-3) 21608 | -4/Upper Caves | Discovered new exit (range 9) 21648 | -4/Upper Caves | Entered another Upper Caves area 21674 | -4/Upper Caves | Discovered new exit (range 16) 21705 | -4/Upper Caves | Attracted the attention of an 0b10 checkpoint 22077 | -4/Upper Caves | Discovered new exit (range 8) 22097 | -4/Upper Caves | Entered Zhirov 22097 | -4/Zhirov | Discovered new exit (range 3) 22120 | -4/Zhirov | Met Zhirov 22150 | -4/Zhirov | Found Alien Artifact 22150 | -4/Zhirov | Identified Integrated Dissipator 22150 | -4/Zhirov | Installed Integrated Dissipator, increased core heat dissipation (+20) 22171 | -4/Zhirov | Found Alien Artifact 22290 | -4/Zhirov | Learned location of Quarantine (-2) 22290 | -4/Zhirov | Learned location of Command (-1) 22306 | -4/Zhirov | Zhirov requested help retrieving the SGEMP Prototype 22363 | -4/Zhirov | Entered Proximity Caves 22647 | -3/Proximity Caves | Spotter reported a threat 22724 | -3/Proximity Caves | Spotter reported a threat 22907 | -3/Proximity Caves | Discovered new exit (range 9) 22981 | -3/Proximity Caves | Entered Research 22981 | -3/Research | Evolved 2 slots: Propulsion x1, Weapon x1 22982 | -3/Research | Loaded intel: 20 terminal locations 23173 | -3/Research | Spotted B-86 Titan 23181 | -3/Research | Revision forces began assault on 0b10 23188 | -3/Research | Met up with Revision 17++ 23408 | -3/Research | Identified Transdimensional Reconstructor 23442 | -3/Research | Spotted B-86 Titan 23681 | -3/Research | Research terminal network offline 24387 | -3/Research | Spotted Striker 24412 | -3/Research | Build established: Scavenger-Construct 24439 | -3/Research | Destroyed Striker 24450 | -3/Research | Spotted Executioner 24456 | -3/Research | Spotted Striker 24461 | -3/Research | Spotted Striker 24470 | -3/Research | Destroyed Striker 24480 | -3/Research | Destroyed Striker 24487 | -3/Research | Destroyed Executioner 24520 | -3/Research | Found Prototype Processor 24520 | -3/Research | Identified Exp. Core Analyzer 24580 | -3/Research | Spotted Striker 24584 | -3/Research | Destroyed Striker 24600 | -3/Research | Spotted Striker 24618 | -3/Research | Destroyed Striker 24739 | -3/Research | Spotted Striker 24763 | -3/Research | Destroyed Striker 24829 | -3/Research | Spotted Striker 24853 | -3/Research | Destroyed Striker 24886 | -3/Research | Destroyed 7 combat bots 25083 | -3/Research | Spotted Striker 25096 | -3/Research | Spotted Striker 25126 | -3/Research | Destroyed Striker 25138 | -3/Research | Build established: Mutant 25141 | -3/Research | Destroyed Striker 25160 | -3/Research | Spotted Striker 25306 | -3/Research | Spotted Executioner 25306 | -3/Research | Spotted Striker 25315 | -3/Research | Destroyed Executioner 25320 | -3/Research | Destroyed Striker 25614 | -3/Research | Spotted Striker 25633 | -3/Research | Found Exp. Terrain Scanner 25655 | -3/Research | Spotted Striker 25669 | -3/Research | Spotted Executioner 25674 | -3/Research | Spotted Striker 25674 | -3/Research | Spotted Executioner 25699 | -3/Research | Core integrity fell below 50% 25703 | -3/Research | Destroyed Striker 25712 | -3/Research | Destroyed Striker 25720 | -3/Research | Spotted Executioner 25723 | -3/Research | Spotted Striker 25732 | -3/Research | Destroyed Executioner 25738 | -3/Research | Core integrity fell below 20% 25748 | -3/Research | Warped through subspace 25775 | -3/Research | Lost 8 parts (2p4u2w) 25872 | -3/Research | Found Fusion Bomb Launcher 25891 | -3/Research | Spotted B-86 Titan 26007 | -3/Research | Build established: Scavenger-Mutant 26023 | -3/Research | Spotted Striker 26043 | -3/Research | Spotted Striker 26100 | -3/Research | Spotted Striker 26102 | -3/Research | Spotted Striker 26128 | -3/Research | Destroyed by Striker with Plasma Lance Last Messages --------------- 26103_ Slug penetrates Wall. 26103_ Penetrated by Slug. 26103_ Slug penetrates Wall. 26105_ The unstable cave ceiling collapses. 26106_ H-77 Assassin destroyed. 26108_ Destroyed Lgt. Quantum Reactor. 26109_ The unstable cave ceiling collapses. 26109_ Penetrated by Slug. 26110_ The unstable cave ceiling collapses. 26111_ Slug penetrates Wall. 26113_ The unstable cave ceiling collapses. 26115_ Imp. Quantum Reactor destroyed. 26117_ Slug penetrates Wall. 26118_ Centrium Light Armor Plating destroyed. 26119_ Fusion Bomb Launcher destroyed. 26120_ The unstable cave ceiling collapses. 26120_ Penetrated by Slug. 26120_ Slug penetrates Wall. 26121_ The unstable cave ceiling collapses. 26126_ Destroyed Lgt. Quantum Reactor. Map ----- +----------------------------------------------------+ | #????????????????????????????????# " # | | #???#????????????????????????????## "% # | | ###????????????????????????????????# " | | ## ##?????????????????????????????????# # | | ???#?????#????????????????????????????# % | | ?#????#???????????????????????????????## | | ????????#??????????????????????????????# | | ?????#?? ??????????????????????????????#### " # # | | ??????????????????????????????????????????#"%" ### | | ?????????????????? ???????????????????????# " #?? | | ? ????#???????????????????????????????????# ### | | ?????????????????????????????????????????# | | ????????#+###+##?????????????????########## ### | | ? ??????# ????????????????# # # # | | ???? ??# ??????????????## #=! | | ???? ???# ###???????????# % #=! | | ?#?????## ???????????# # | | ??????## ??????????## | | ????? ??????????# | | ??? ? ?????????## =[ | | ????? ?????????# | | ???? ????????# ! | | ???? ###+#????#= # | | ? ??% #??????# | | ???????? % K #??####### # | | ??????????????????# @K #??#! # # # | | ?#????????????????#########K#### # | | ???????????????????# # * ! #? | | ???????????????????#! =% #?? | | ???????????????????# ##???? | | ???????????????????# # ##???? | | ???????????????????# # #???? | | ????""T""??????????# # #???? | | ????"""""??????????######## ###???? | | ?????????????????????????? ## | | ??????????????????????????## ## # | | ???????????????????????????# ###? | | ???????????????????????????# ##?????? | | ???????????????????????????# # # #????????? | | ???????????????????????????# #######????????? | | ???????????????????????????########??????????????? | | ?????????????????????????????????????????????????? | | ?????????????????????????????????????????????????? | | ?????????????????????????????????????????????????? | | ?????????????????????????????????????????????????? | | ?????????????????????????????????????????????????? | | ?????????????????????????????????????????????????? | | ?????????????????????????????????????????????????? | | ?????????????????????????????????????????????????? | | ?????????????????????????????????????????????????? | +----------------------------------------------------+ Best States ------------- Heat Dissipation 156 Energy Generation 56 Energy Capacity 1273 Matter Stores 500 Matter Capacity 600 Sight Range 23 Terrain Scan Range 24 Terrain Scan Density 210 Jamming Range 12 Base Temperature (-) 150 EM Shielding 2 Armor Coverage 975 Resistance: KI 20 Resistance: TH 30 Resistance: EM 15 Utility Shielding 90 Point Defense Rating 160 Phase Shifting 10 Evasion (%) 67 Targeting Accuracy 8 Core Analysis 8 Recoil Reduction 5 Offensive Hacking 24 Defensive Hacking 12 Item Schematics ----------------- Drone Bay | -8/Recycling | Hacked Imp. Heat Sink | -8/Recycling | Hacked Cryofiber Web | -8/Recycling | Hacked Assault Drone Bay | -4/Zhirov | Free Exp. Heat Sink | -4/Zhirov | Free Exp. Optical Array | -4/Zhirov | Free Imp. Arc Thrower | -4/Zhirov | Free Robot Schematics ------------------ None Fabricated ------------ Nothing Alien Tech Used ----------------- Integrated Dissipator Transdimensional Reconstructor Achievements -------------- Collateral Damage No Explosion For You Preemptive Strike Revolutionary Research Challenges ------------ None Game ------ Seed BoltAntimatterBattery Manual? 0 Play Time 05:06:08 Cumulative 185.4 hours Start 2024.11.25 @ 13:36:11 End 2024.11.25 @ 18:59:33 Sessions 3 Manual Loads 0 Difficulty Rogue Special Mode None Game No. 65 Rogue 64 Adventurer 1 Explorer 0 Win Type - Total 4 Types 4/0/0/0/0/0/0/0/0 Lore% 53 Gallery% 65 Achievement% 53 Wizard Run 0 Options --------- Layout 0 ASCII 1 Keyboard 1 Movement Vi Keybinds 0 Fullscreen 2 Font 36/Terminus++ Map View 76x50 Zoom Use 0% Tactical HUD 1 Map Filters NONE Filters NONE Steam 1 RUN: 39ed5a47-df20-452c-9194-a29d23782112